bitfinex/quotes_ETHUSD_20250422
["timestamp","ask_amount","ask_price","bid_price","bid_amount"]
[1745318128995,8.00488161,1622.3,1622.2,0.1924251]
[1745318129152,8.80368161,1622.3,1622.2,0.1924251]
[1745318129665,6.16509051,1622.1,1621.9,0.22001543]
[1745318129881,6.16509051,1622.1,1622.0,0.19244478]
[1745318130615,12.24509051,1622.1,1622.0,0.41246021]
[1745318130758,8.62252923,1622.1,1622.0,0.41246021]
[1745318131380,8.61227356,1622.1,1622.0,0.22001543]
[1745318131697,6.16529252,1622.0,1621.6,9.16652052]
[1745318132054,6.16529252,1622.0,1621.7,0.34346501]
[1745318132262,6.16529252,1622.0,1621.8,0.41255321]
[1745318132469,7.64304913,1622.0,1621.8,0.41255321]
[1745318132656,7.64304913,1622.0,1621.9,0.19246066]
[1745318133153,7.64304913,1622.0,1621.9,0.41255321]
[1745318134162,18.23248104,1622.2,1621.9,0.41255321]
[1745318134469,6.16486723,1622.1,1621.9,0.41255321]
[1745318134680,6.16486723,1622.1,1622.0,0.19246066]
[1745318135079,6.16467894,1622.2,1622.0,0.19246066]
[1745318135287,12.24410591,1622.3,1622.0,9.35758629]
[1745318135613,12.24410591,1622.3,1622.1,0.41255321]
[1745318136508,6.16410591,1622.3,1622.2,0.22009255]
[1745318136796,6.16410591,1622.3,1622.2,0.41255321]
[1745318138272,6.16386447,1622.4,1622.2,0.41255321]
[1745318138466,12.24355205,1622.5,1622.2,0.41255321]
[1745318138667,6.96191397,1622.6,1622.3,3.19246066]
[1745318138876,8.88238478,1622.6,1622.3,3.19246066]
[1745318139065,8.08358478,1622.6,1622.3,3.99976066]
[1745318139264,5.903,1622.8,1622.4,0.22009255]
[1745318139465,5.903,1622.8,1622.4,0.41255321]
[1745318139466,6.16310283,1622.6,1622.4,0.41255321]
[1745318139689,6.16272556,1622.7,1622.4,0.41255321]
[1745318139898,12.32555395,1622.7,1622.5,0.19246066]
[1745318140207,6.16294835,1622.6,1622.4,0.22009255]
[1745318140413,27.1998,1622.9,1622.5,0.22009255]
[1745318140571,9.49852413,1622.8,1622.5,3.22009255]
[1745318140908,6.16234987,1622.8,1622.6,0.19238066]
[1745318141268,6.16234987,1622.8,1622.5,3.22009255]
[1745318141692,6.16234987,1622.8,1622.6,0.50340336]
[1745318141897,6.16234987,1622.8,1622.6,0.72349591]
[1745318142792,12.32405812,1622.9,1622.6,0.72349591]
[1745318143001,6.16159965,1623.0,1622.7,0.19236916]
[1745318143309,6.97294907,1623.1,1622.7,6.91713403]
[1745318143552,6.16124907,1623.1,1622.8,3.50340336]
[1745318143884,12.32262716,1623.1,1622.8,3.50340336]
[1745318144087,8.00151179,1623.1,1622.9,0.41276127]
[1745318144422,6.1609015,1623.2,1623.0,0.19233803]
[1745318144585,12.24048237,1623.3,1623.1,0.50023784]
[1745318144787,6.26014141,1623.4,1623.1,0.50023784]
[1745318144986,6.26005182,1623.4,1623.1,3.50023784]
[1745318145213,6.26005182,1623.4,1623.2,0.19228994]
[1745318145418,6.16029076,1623.3,1623.2,0.19228994]
[1745318146377,6.16029076,1623.3,1623.2,0.41253234]
[1745318146736,13.05199076,1623.3,1623.2,0.41253234]
[1745318146888,13.05199076,1623.3,1623.2,0.2202424]
[1745318147221,12.24029076,1623.3,1623.2,0.2202424]
[1745318148108,12.24029076,1623.3,1623.2,0.41254448]
[1745318149425,12.23011214,1623.3,1623.2,0.41254448]
[1745318150311,12.23011214,1623.3,1623.2,0.2202424]
[1745318150508,15.141578,1623.3,1623.2,0.2202424]
[1745318150809,6.16176235,1623.0,1622.8,0.7547]
[1745318150999,6.16176235,1623.0,1622.9,0.19232271]
[1745318151198,6.16120748,1623.1,1622.9,0.19232271]
[1745318151527,12.32181702,1623.2,1623.0,0.19232271]
[1745318151728,6.16085706,1623.2,1623.0,0.19232271]
[1745318152034,6.16118921,1623.1,1622.8,9.91670292]
[1745318152435,6.16118921,1623.1,1622.9,0.19231893]
[1745318152728,6.16118921,1623.1,1623.0,0.19231893]
[1745318153321,6.16118921,1623.1,1622.6,4.59666198]
[1745318153322,6.16142945,1623.0,1622.9,0.19231893]
[1745318153838,6.16210097,1622.9,1622.7,0.19231893]
[1745318154022,12.32426163,1622.9,1622.7,0.19231893]
[1745318154209,12.32418369,1622.9,1622.7,0.19231893]
[1745318154412,6.1621888,1622.8,1622.7,0.19231893]
[1745318155351,6.1621888,1622.8,1622.6,0.7547]
[1745318155352,6.16256855,1622.7,1622.6,0.7547]
[1745318155520,6.16256855,1622.7,1622.5,3.0]
[1745318155719,6.16201147,1622.9,1622.3,0.01011958]
[1745318155720,6.16332819,1622.5,1622.3,0.01011958]
[1745318155923,6.16370808,1622.4,1622.3,0.47226774]
[1745318156136,6.16370808,1622.4,1622.3,0.81535993]
[1745318156437,6.16370808,1622.4,1622.3,0.54560648]
[1745318156743,6.16332819,1622.5,1622.3,0.92399711]
[1745318156936,6.16332819,1622.5,1622.4,0.19239471]
[1745318157236,6.16318502,1622.6,1622.4,0.19239471]
[1745318157403,6.16318502,1622.6,1622.3,0.23001454]
[1745318157608,6.16318502,1622.6,1622.5,0.37839063]
[1745318157827,6.16318502,1622.6,1622.4,0.21989496]
[1745318158046,6.16318502,1622.6,1622.5,0.37839063]
[1745318158443,6.16318502,1622.6,1622.5,0.57077683]
[1745318160543,6.97058502,1622.6,1622.5,0.57077683]
[1745318160847,8.90019397,1622.6,1622.5,0.57077683]
[1745318161057,8.90019397,1622.6,1622.5,0.37839063]
[1745318161215,8.90019397,1622.6,1622.1,0.01011958]
[1745318161414,6.16400482,1622.4,1622.1,0.01011958]
[1745318161665,6.16400482,1622.4,1622.2,0.88273754]
[1745318161842,6.16408802,1622.3,1622.2,0.69032701]
[1745318162352,6.16408802,1622.3,1622.2,0.53927753]
[1745318162555,12.32788316,1622.4,1622.2,0.53927753]
[1745318162723,6.16389393,1622.4,1622.2,0.53927753]
[1745318163124,6.16389393,1622.4,1622.2,0.70179778]
[1745318163424,6.16389393,1622.4,1622.2,0.34685807]
[1745318163425,6.16408802,1622.3,1622.2,0.34685807]
[1745318164170,6.15396844,1622.3,1622.2,0.34685807]
[1745318164338,6.15396844,1622.3,1622.2,0.53927912]
[1745318164537,18.40786783,1622.4,1622.2,0.53927912]
[1745318164737,18.40791899,1622.4,1622.2,0.53927912]
[1745318164953,12.24389393,1622.4,1622.3,0.19242105]
[1745318165148,12.24389393,1622.4,1622.3,0.52451828]
[1745318166461,12.24389393,1622.4,1622.3,0.74418982]
[1745318166662,6.08,1622.4,1622.3,0.74418982]
[1745318167025,12.32718085,1622.5,1622.3,1.1186088]
[1745318167232,6.15049349,1622.4,1622.3,1.1186088]
[1745318167558,6.16366165,1622.5,1622.3,0.89893726]
[1745318167867,6.97110808,1622.4,1622.3,0.52451828]
[1745318168028,6.97110808,1622.4,1622.3,0.33209723]
[1745318168365,6.16370808,1622.4,1622.0,9.93462345]
[1745318168567,6.16370808,1622.4,1622.3,0.33209723]
[1745318168738,6.16370808,1622.4,1622.1,0.34397931]
[1745318168944,6.16370808,1622.4,1622.3,0.33209723]
[1745318169141,6.16370808,1622.4,1622.2,3.0]
[1745318169343,6.16370808,1622.4,1622.3,0.52450755]
[1745318169542,0.8074,1622.6,1622.3,0.52450755]
[1745318169543,6.16276107,1622.7,1622.3,1.35730755]
[1745318169852,6.16235729,1622.8,1622.4,6.90578196]
[1745318170052,6.16235729,1622.8,1622.5,1.25416567]
[1745318170256,6.16235729,1622.8,1622.6,0.19241032]
[1745318170645,13.01478846,1623.0,1622.7,3.33150346]
[1745318170844,19.1765734,1623.0,1622.7,3.52391378]
[1745318171259,6.08,1623.0,1622.7,4.34767154]
[1745318171589,6.08,1623.0,1622.8,0.19241032]
[1745318171786,6.93400607,1623.2,1622.9,3.0]
[1745318171949,13.0950195,1623.2,1622.9,3.51975867]
[1745318172145,6.93400607,1623.2,1622.9,3.51975867]
[1745318172345,13.09502744,1623.2,1623.0,0.19241032]
[1745318172546,6.93400607,1623.2,1623.0,0.19241032]
[1745318172775,6.93400607,1623.2,1623.1,0.32734835]
[1745318172981,6.16090607,1623.2,1623.1,0.32734835]
[1745318173167,6.1503392,1623.2,1623.1,0.32734835]
[1745318173370,6.1503392,1623.2,1622.9,3.8328]
[1745318173647,6.1503392,1623.2,1623.0,0.54695791]
[1745318173876,6.16104984,1623.1,1623.0,0.54695791]
[1745318174683,6.16104984,1623.1,1623.0,0.73929148]
[1745318175447,6.93414984,1623.1,1623.0,0.73929148]
[1745318175767,6.93414984,1623.1,1623.0,0.21960956]
[1745318175972,6.93414984,1623.1,1623.0,0.54695791]
[1745318176281,6.93414984,1623.1,1623.0,0.32734835]
[1745318176660,6.16171425,1623.0,1622.8,3.8328]
[1745318177072,6.161258,1623.1,1622.9,0.41205832]
[1745318177272,12.32259089,1623.1,1622.9,0.41205832]
[1745318177502,6.161258,1623.1,1623.0,0.19234205]
[1745318179282,6.9216923,1623.1,1623.0,0.19234205]
[1745318179497,6.16239011,1622.8,1622.5,0.7572]
[1745318179817,6.16200301,1622.9,1622.6,0.34420492]
[1745318179818,6.16198815,1622.9,1622.6,0.34420492]
[1745318180012,12.24161312,1623.0,1622.7,0.7572]
[1745318180176,12.24161312,1623.0,1622.7,0.97707865]
[1745318180490,6.16202082,1622.9,1622.8,0.53655758]
[1745318181080,6.16202082,1622.9,1622.8,0.75643623]
[1745318181412,6.16202082,1622.9,1622.8,0.41223131]
[1745318181612,9.38774592,1622.9,1622.8,0.41223131]
[1745318181817,6.16408802,1622.3,1622.0,0.7572]
[1745318182121,6.16393238,1622.4,1622.0,13.08727563]
[1745318182275,6.16320757,1622.6,1622.2,6.92155894]
[1745318182481,6.16320757,1622.6,1622.3,0.29742555]
[1745318182876,6.16350572,1622.5,1622.3,0.29742555]
[1745318183113,6.16370808,1622.4,1622.3,0.29742555]
[1745318183325,6.16370808,1622.4,1622.3,0.64192857]
[1745318183483,7.04448684,1622.4,1622.3,0.64192857]
[1745318184007,13.12448684,1622.4,1622.3,0.64192857]
[1745318184182,13.12448684,1622.4,1622.3,0.29742555]
[1745318184385,6.16461849,1622.2,1621.8,6.92294146]
[1745318184687,6.16461849,1622.2,1621.9,0.62080791]
[1745318185295,6.16461849,1622.2,1621.9,1.83059554]
[1745318185531,6.16461849,1622.2,1622.0,0.34451364]
[1745318186033,6.16461849,1622.2,1622.1,0.27629427]
[1745318186596,12.32940283,1622.2,1621.8,6.92293833]
[1745318186802,6.16461849,1622.2,1622.1,0.27925834]
[1745318187319,12.32945592,1622.2,1621.8,6.92293833]
[1745318187502,6.16522811,1622.0,1621.9,0.27925834]
[1745318187902,12.32936035,1622.2,1621.9,0.27925834]
[1745318188228,12.32939578,1622.2,1622.0,0.34428731]
[1745318188735,6.16461074,1622.2,1622.1,0.27925834]
[1745318189096,6.16520187,1622.1,1621.8,1.27934264]
[1745318189324,6.16520187,1622.1,1621.9,0.27925834]
[1745318189645,6.16520187,1622.1,1621.2,1.2791579]
[1745318189646,6.167241,1621.5,1621.2,1.2791579]
[1745318189809,6.167241,1621.5,1621.3,0.34429619]
[1745318190705,6.167241,1621.5,1621.1,6.16842042]
[1745318190912,12.33469132,1621.5,1621.1,6.16842042]
[1745318191214,12.33469132,1621.5,1621.1,7.78400898]
[1745318191611,6.16696215,1621.6,1621.3,0.8186]
[1745318193235,6.16717514,1621.5,1621.3,0.8186]
[1745318193839,6.16696215,1621.6,1621.3,0.8186]
[1745318194551,6.16696215,1621.6,1621.3,6.9864713]
[1745318195307,6.96445905,1621.7,1621.3,7.97475401]
[1745318195507,13.1311819,1621.7,1621.3,7.97475401]
[1745318195737,6.96445905,1621.7,1621.3,7.97475401]
[1745318195938,13.13117061,1621.7,1621.3,7.91307898]
[1745318196102,6.16712962,1621.5,1621.3,0.8186]
[1745318196304,6.16683147,1621.6,1621.3,0.8186]
[1745318197341,6.15742935,1621.6,1621.4,0.27160044]
[1745318197513,6.96444643,1621.7,1621.3,6.98620406]
[1745318197713,6.16654643,1621.7,1621.4,6.43910273]
[1745318197918,6.16654643,1621.7,1621.4,0.27160044]
[1745318198134,6.16654643,1621.7,1621.3,13.15389246]
[1745318198438,6.16654643,1621.7,1621.4,0.27160044]
[1745318198810,12.33317135,1621.7,1621.4,3.27160044]
[1745318199010,12.33317135,1621.7,1621.4,3.0]
[1745318199206,6.16654643,1621.7,1621.5,0.27160044]
[1745318199413,6.16582914,1621.9,1621.6,0.8186]
[1745318199811,6.1659884,1621.8,1621.7,0.27476425]
[1745318200043,8.23137015,1621.8,1621.7,0.27476425]
[1745318200255,6.16687919,1621.6,1621.4,4.2296255]
[1745318200546,6.16687919,1621.6,1621.4,1.2296255]
[1745318200744,6.16657321,1621.7,1621.4,1.2296255]
[1745318200917,12.33326993,1621.7,1621.4,1.2296255]
[1745318201116,6.16657321,1621.7,1621.4,0.7691]
[1745318201337,12.33328561,1621.7,1621.4,0.7691]
[1745318201548,6.16657321,1621.7,1621.5,0.27397318]
[1745318202059,12.33324403,1621.7,1621.5,0.27397318]
[1745318202211,6.16657321,1621.7,1621.5,0.27397318]
[1745318203151,6.15746028,1621.7,1621.5,0.27397318]
[1745318203354,12.32414521,1621.7,1621.5,0.27397318]
[1745318203521,6.15746028,1621.7,1621.5,0.27397318]
[1745318204347,12.24618816,1621.8,1621.5,9.44109512]
[1745318204551,12.24618816,1621.8,1621.5,3.27397318]
[1745318204917,12.24618816,1621.8,1621.5,9.44106227]
[1745318205232,12.24618816,1621.8,1621.5,11.07880518]
[1745318205431,12.24618816,1621.8,1621.5,14.33715299]
[1745318205632,18.41248595,1621.8,1621.5,8.1700639]
[1745318205918,12.24618816,1621.8,1621.5,8.1700639]
[1745318207740,6.08,1621.8,1621.5,14.33697775]
[1745318208150,6.08,1621.8,1621.5,14.34599562]
[1745318208359,12.24599417,1621.8,1621.5,14.34599562]
[1745318208656,12.24599417,1621.8,1621.6,0.56063124]
[1745318209058,12.24599417,1621.8,1621.6,0.83252783]
[1745318209241,12.23860436,1621.8,1621.6,0.83252783]
[1745318209441,12.23860436,1621.8,1621.6,0.48872794]
[1745318209657,12.23860436,1621.8,1621.6,0.27189659]
[1745318209841,6.16599417,1621.8,1621.6,0.27189659]
[1745318210019,6.16636862,1621.7,1621.6,0.27189659]
[1745318210712,8.0162226,1621.7,1621.6,0.27189659]
[1745318212558,8.0162226,1621.7,1621.6,0.48943314]
[1745318212559,14.08883279,1621.7,1621.6,0.48943314]
[1745318212755,14.92103279,1621.7,1621.6,0.48943314]
[1745318213757,14.92103279,1621.7,1621.6,0.27189659]
[1745318214320,6.16827041,1621.2,1621.1,0.00901787]
[1745318214523,6.16827041,1621.2,1621.1,3.00901787]
[1745318214748,6.1680775,1621.3,1621.1,3.22670955]
[1745318215168,6.16080077,1621.3,1621.2,0.34515497]
[1745318215675,6.16080077,1621.3,1621.2,0.56284665]
[1745318216540,6.16080077,1621.3,1621.2,0.81188744]
[1745318217156,6.1517829,1621.3,1621.2,0.81188744]
[1745318219149,6.9281829,1621.3,1621.2,0.81188744]
[1745318219349,8.2433509,1621.3,1621.2,0.56284665]
[1745318219972,6.16835523,1621.2,1621.0,3.0]
[1745318220493,6.84901019,1621.5,1621.1,4.08734781]
[1745318220778,6.16764792,1621.4,1621.1,4.30512294]
[1745318220942,6.16764792,1621.4,1621.1,5.65252295]
[1745318221145,6.1679334,1621.3,1621.1,5.65252295]
[1745318221345,6.1679334,1621.3,1621.2,0.21777513]
[1745318222256,6.1679334,1621.3,1621.2,0.56299012]
[1745318222459,12.33544139,1621.4,1621.2,0.56299012]
[1745318222887,6.16764792,1621.4,1621.3,0.34521499]
[1745318223573,12.23992975,1621.5,1621.3,0.56299012]
[1745318224090,12.23992975,1621.5,1621.4,0.34521499]
[1745318224587,6.07261019,1621.5,1621.4,0.56299012]
[1745318224991,6.07261019,1621.9,1621.7,3.0]
[1745318225159,18.4036176,1622.0,1621.7,3.0]
[1745318225486,6.16566351,1621.9,1621.7,3.0]
[1745318225787,6.07261019,1622.0,1621.8,1.04677513]
[1745318225945,6.94140301,1622.1,1621.8,1.04677513]
[1745318226145,6.16500301,1622.1,1621.9,0.3449513]
[1745318226663,13.01371933,1622.2,1622.0,0.21777513]
[1745318227188,6.16488671,1622.1,1622.0,0.21777513]
[1745318227978,6.16488671,1622.1,1622.0,0.56252892]
[1745318228377,13.00401802,1622.2,1622.0,0.56252892]
[1745318228682,6.16484803,1622.1,1622.0,0.21777513]
[1745318230309,6.16432689,1622.3,1622.0,0.56233277]
[1745318230465,6.16432689,1622.3,1622.1,3.7552]
[1745318230666,6.07261019,1622.4,1622.1,9.91984507]
[1745318231200,6.16333184,1622.5,1622.3,3.0]
[1745318231562,6.16345849,1622.5,1622.4,0.2417257]
[1745318231762,6.16345849,1622.5,1622.4,0.45950083]
[1745318232793,12.32639315,1622.6,1622.4,0.45950083]
[1745318233000,12.23541649,1622.7,1622.4,0.2417257]
[1745318233184,12.23541649,1622.7,1622.6,0.00714665]
[1745318233388,14.26275814,1622.7,1622.6,0.00714665]
[1745318233580,14.26275814,1622.7,1622.6,0.24887235]
[1745318239205,14.25189808,1622.7,1622.6,0.24887235]
[1745318239407,13.44809808,1622.7,1622.6,0.24887235]
[1745318239711,12.22455643,1622.7,1622.6,0.24887235]
[1745318240086,12.22431868,1622.7,1622.6,0.24887235]
[1745318242211,6.16256855,1622.7,1622.6,0.24887235]
[1745318242904,6.17249255,1622.7,1622.6,0.24887235]
[1745318244416,6.97629255,1622.7,1622.6,0.24887235]
[1745318244723,9.51257206,1622.7,1622.6,0.24887235]
[1745318245222,9.50038313,1622.7,1622.6,0.24887235]
[1745318246491,0.009924,1622.7,1622.6,0.24887235]
[1745318246726,0.009924,1622.7,1622.6,3.24887235]
[1745318247946,0.009924,1622.7,1622.6,14.00948897]
[1745318248934,0.009924,1622.7,1622.6,14.55948897]
[1745318249127,0.009924,1622.7,1622.6,29.71501397]
[1745318249318,0.009924,1622.7,1622.6,31.28441801]
[1745318250038,6.16077364,1623.2,1622.9,3.0]
[1745318250207,0.1,1623.4,1622.9,3.0]
[1745318250208,6.25999592,1623.4,1622.9,3.0]
[1745318250536,6.25999592,1623.4,1623.0,0.22908137]
[1745318250537,6.16076438,1623.2,1623.0,0.22908137]
[1745318251049,6.16104984,1623.1,1623.0,0.22908137]
[1745318251337,6.16104984,1623.1,1623.0,1.00428137]
[1745318251898,6.16104984,1623.1,1623.0,0.22908137]
[1745318254817,6.16076438,1623.2,1623.0,0.22908137]
[1745318255266,6.16104984,1623.1,1623.0,0.22908137]
[1745318256126,6.16076438,1623.2,1623.0,0.22908137]
[1745318256326,12.22221516,1623.3,1623.0,0.22908137]
[1745318256748,6.16082214,1623.2,1623.0,0.22908137]
[1745318257155,6.15262581,1623.2,1623.0,0.22908137]
[1745318257354,12.31363166,1623.2,1623.0,0.22908137]
[1745318258151,12.22223787,1623.3,1623.0,3.81033732]
[1745318258358,0.1,1623.4,1623.2,9.41898857]
[1745318258544,0.1,1623.4,1623.3,0.22295887]
[1745318259065,0.1,1623.4,1623.3,3.22295887]
[1745318259422,0.1,1623.4,1623.3,4.21943245]
[1745318259626,0.1,1623.4,1623.3,11.92316096]
[1745318260771,0.1,1623.4,1623.3,18.23617447]
[1745318260918,0.1,1623.4,1623.3,42.52057962]
[1745318261124,0.1,1623.4,1623.3,33.45269062]
[1745318261526,0.1,1623.4,1623.3,28.46512262]
[1745318261732,0.1,1623.4,1623.3,21.35348262]
[1745318263123,0.09164156,1623.4,1623.3,21.35348262]
[1745318263326,0.09164156,1623.4,1623.3,1.56298614]
[1745318263526,0.09164156,1623.4,1623.3,4.56298614]
[1745318269037,0.08235752,1623.4,1623.3,4.56298614]
[1745318269974,0.85615752,1623.4,1623.3,0.78778614]
[1745318270275,14.39536097,1623.4,1623.3,0.56482727]
[1745318270574,14.39536097,1623.4,1623.3,0.22127358]
[1745318270874,14.39536097,1623.4,1622.9,3.0]
[1745318270875,6.16088336,1623.2,1622.9,3.0]
[1745318271070,6.16106125,1623.1,1622.9,3.0]
[1745318271488,6.16050747,1623.3,1623.1,3.0]
[1745318271692,6.16104984,1623.1,1623.0,3.22096271]
[1745318271854,6.16067028,1623.2,1623.0,0.22096271]
[1745318272057,12.32166213,1623.2,1623.0,0.22096271]
[1745318272287,6.16067028,1623.2,1623.0,0.22096271]
[1745318273191,6.16067028,1623.2,1623.1,0.22096271]
[1745318274009,6.85115366,1623.2,1623.1,0.22096271]
[1745318274576,6.16067028,1623.2,1623.1,0.22096271]
[1745318275198,6.14928187,1623.2,1623.1,0.22096271]
[1745318276508,6.94268187,1623.2,1623.1,0.22096271]
[1745318276807,6.94268187,1623.2,1623.1,0.42011075]
[1745318276970,13.004432,1623.2,1623.1,0.42011075]
[1745318277177,15.53697106,1623.2,1623.1,0.19914804]
[1745318277359,15.53697106,1623.2,1622.6,0.00714665]
[1745318277360,6.16233121,1622.8,1622.6,0.00714665]
[1745318277569,6.16233121,1622.8,1622.7,0.54364793]
[1745318278363,6.06175013,1623.1,1623.0,3.0]
[1745318278569,6.14410765,1623.4,1623.0,6.4598648]
[1745318278764,6.16044163,1623.3,1623.0,6.4598648]
[1745318278973,12.30425624,1623.4,1623.0,13.38889053]
[1745318279569,12.30425624,1623.4,1623.1,0.56619415]
[1745318279799,12.30425624,1623.4,1623.2,0.20003631]
[1745318280560,12.30425624,1623.4,1623.3,0.22169426]
[1745318280976,14.15065913,1623.4,1623.3,0.42173057]
[1745318284098,12.30425624,1623.4,1623.3,0.42173057]
[1745318285701,0.08235752,1623.4,1623.3,11.15816914]
[1745318286002,0.08235752,1623.4,1623.3,11.50242556]
[1745318286795,0.07180966,1623.4,1623.3,4.7921348]
[1745318286996,0.07180966,1623.4,1623.3,0.76598699]
[1745318286997,6.23172095,1623.4,1623.3,0.76598699]
[1745318289908,6.23172095,1623.4,1623.3,0.42173057]
[1745318290153,8.16211725,1623.4,1623.3,0.42173057]
[1745318290622,8.16211725,1623.4,1623.3,0.20003631]
[1745318290822,6.16074186,1623.2,1623.1,0.34442232]
[1745318291021,6.16074186,1623.2,1623.1,0.56612999]
[1745318291601,6.16074186,1623.2,1623.1,0.76468594]
[1745318292521,6.16036223,1623.3,1623.1,0.76468594]
[1745318292834,6.15302546,1623.3,1623.2,0.34442232]
[1745318293018,6.15302546,1623.3,1623.2,0.56612999]
[1745318293329,6.15302546,1623.3,1623.2,0.76468594]
[1745318293533,9.42478654,1623.3,1623.2,0.76481079]
[1745318293907,9.42478654,1623.3,1623.2,0.56625484]
[1745318294112,9.42478654,1623.3,1623.2,0.76510679]
[1745318294445,6.16189272,1622.9,1622.7,9.68484781]
[1745318294816,6.16151375,1623.0,1622.8,0.54353645]
[1745318295017,6.1618091,1622.9,1622.8,0.54353645]
[1745318295414,6.1618091,1622.9,1622.8,0.765453]
[1745318295746,6.16151375,1623.0,1622.8,0.765453]
[1745318295952,6.16151375,1623.0,1622.8,4.81048308]
[1745318296156,6.16151375,1623.0,1622.9,0.3446845]
[1745318296324,6.16127905,1623.1,1622.9,0.3446845]
[1745318296534,6.16081124,1623.2,1623.0,0.7545]
[1745318296734,6.16081124,1623.2,1623.1,0.22191655]
[1745318296970,6.16081124,1623.2,1623.1,0.56660105]
[1745318297369,6.16081124,1623.2,1623.1,0.765453]
[1745318298261,8.00898872,1623.2,1623.1,0.765453]
[1745318298424,6.16081124,1623.2,1623.1,0.765453]
[1745318298863,6.16081124,1623.2,1623.1,0.4207685]
[1745318301269,6.1604816,1623.3,1623.1,1.2216685]
[1745318301469,6.1604816,1623.3,1623.1,7.48001631]
[1745318301670,6.1604816,1623.3,1623.2,0.22191655]
[1745318301971,6.1604816,1623.3,1623.2,0.56654343]
[1745318302150,6.1604816,1623.3,1623.2,0.76657963]
[1745318303577,6.1604816,1623.3,1623.2,1.22332759]
[1745318303874,6.1604816,1623.3,1623.2,0.76657963]
[1745318304775,6.15292668,1623.3,1623.2,0.76657963]
[1745318305476,12.3921018,1623.4,1623.2,0.76657963]
[1745318305978,6.16029076,1623.3,1623.2,0.76657963]
[1745318307446,6.23188936,1623.4,1623.2,0.76657963]
[1745318307776,6.23188936,1623.4,1623.3,0.56654343]
[1745318308157,6.23188936,1623.4,1623.3,0.76490193]
[1745318309807,0.07180966,1623.4,1623.3,17.1696405]
[1745318310009,0.07180966,1623.4,1623.3,41.5622655]
[1745318310212,0.07180966,1623.4,1623.3,20.1696405]
[1745318310714,0.05932054,1623.4,1623.3,34.5593165]
[1745318310873,0.05932054,1623.4,1623.3,28.5085795]
[1745318311078,0.05932054,1623.4,1623.3,27.4929225]
[1745318313110,0.05932054,1623.4,1623.3,20.1696405]
[1745318313619,0.05932054,1623.4,1623.3,14.00934974]
[1745318313806,0.05932054,1623.4,1623.3,20.1696405]
[1745318313981,0.05932054,1623.4,1623.3,14.00934974]
[1745318314411,0.05932054,1623.4,1623.3,20.1696405]
[1745318314619,0.05932054,1623.4,1623.3,7.83534974]
[1745318314832,0.05932054,1623.4,1623.3,4.57700193]
[1745318316339,0.05932054,1623.4,1623.3,14.5456405]
[1745318316540,0.05932054,1623.4,1623.3,8.38534974]
[1745318316748,0.04936406,1623.4,1623.3,8.38534974]
[1745318316929,0.04936406,1623.4,1623.3,13.9956405]
[1745318317458,0.04936406,1623.4,1623.3,7.83534974]
[1745318317917,0.04936406,1623.4,1623.3,13.9956405]
[1745318318858,0.04936406,1623.4,1623.3,14.5456405]
[1745318319913,0.04936406,1623.4,1623.3,3.76490193]
[1745318320614,0.04936406,1623.4,1623.3,4.02324974]
[1745318320939,0.04936406,1623.4,1623.3,14.28438262]
[1745318321319,0.04936406,1623.4,1623.3,14.83438262]
[1745318321550,0.04936406,1623.4,1623.3,28.48748762]
[1745318321893,0.04936406,1623.4,1623.3,25.52362662]
[1745318322588,0.04191621,1623.4,1623.3,17.32180962]
[1745318322980,0.04191621,1623.4,1623.3,10.61151886]
[1745318323285,0.04191621,1623.4,1623.3,8.12409186]
[1745318323592,0.04191621,1623.4,1623.3,7.02324974]
[1745318326194,0.04191621,1623.4,1623.3,13.1835405]
[1745318327224,0.04191621,1623.4,1623.3,7.02324974]
[1745318327706,0.04191621,1623.4,1623.3,13.1835405]
[1745318329519,0.04191621,1623.4,1623.3,13.7335405]
[1745318329820,0.04191621,1623.4,1623.3,18.7606835]
[1745318330517,0.04191621,1623.4,1623.3,17.6006425]
[1745318332539,0.04191621,1623.4,1623.3,3.76490193]
[1745318333552,0.04191621,1623.4,1623.3,3.76500982]
[1745318334826,6.9815275,1623.4,1623.3,3.76500982]
[1745318335155,8.29564797,1623.4,1623.3,0.76500982]
[1745318338556,14.3573981,1623.4,1623.3,0.76500982]
[1745318339255,14.3573981,1623.4,1623.3,0.42038294]
[1745318340252,14.3573981,1623.4,1623.3,0.1983585]
[1745318340434,6.93329803,1622.9,1622.6,9.60959446]
[1745318340635,0.7797,1622.9,1622.7,3.0]
[1745318341050,0.7797,1622.9,1622.8,0.3451941]
[1745318341256,0.7797,1622.9,1622.8,0.56745682]
[1745318342257,6.9415091,1622.9,1622.8,0.56745682]
[1745318343416,6.9415091,1622.9,1622.8,0.56697009]
[1745318343725,8.25182179,1622.9,1622.8,0.56697009]
[1745318346559,8.24336429,1622.9,1622.8,0.56697009]
[1745318348063,8.24336429,1622.9,1622.8,0.73390557]
[1745318348365,8.24336429,1622.9,1622.8,0.3891982]
[1745318348933,6.16123687,1623.1,1622.8,4.43764601]
[1745318349133,6.06175013,1623.2,1622.8,4.43764601]
[1745318349134,18.38357092,1623.2,1622.9,0.22226272]
[1745318349333,13.00234472,1623.2,1622.9,0.22226272]
[1745318349758,19.16326851,1623.2,1623.0,0.16693548]
[1745318350064,14.91867157,1623.2,1623.0,0.16693548]
[1745318350462,21.07960277,1623.2,1623.0,0.16693548]
[1745318350650,21.07960589,1623.2,1622.8,4.04844781]
[1745318350849,14.91867157,1623.2,1622.9,0.1703895]
[1745318351180,14.91867157,1623.2,1622.9,3.1703895]
[1745318351382,6.06175013,1623.2,1622.9,3.0]
[1745318351592,6.06175013,1623.2,1623.0,0.39192833]
[1745318352354,6.06175013,1623.2,1623.1,0.22153883]
[1745318352890,6.06175013,1623.2,1623.1,0.73602176]
[1745318353495,0.85761621,1623.4,1623.1,4.54972176]
[1745318353790,6.20183523,1623.4,1623.1,4.20562833]
[1745318353971,0.04191621,1623.4,1623.1,4.20562833]
[1745318354172,6.20185948,1623.4,1623.1,4.20562833]
[1745318354396,0.04191621,1623.4,1623.1,4.20562833]
[1745318354577,0.04191621,1623.4,1623.2,0.22153883]
[1745318354779,6.20182843,1623.4,1623.2,0.22153883]
[1745318355174,6.20182843,1623.4,1623.3,0.168317]
[1745318355658,0.04191621,1623.4,1623.3,0.168317]
[1745318355861,6.2018275,1623.4,1623.3,0.168317]
[1745318356060,6.2018275,1623.4,1623.3,0.38985583]
[1745318356260,0.04191621,1623.4,1623.3,0.38985583]
[1745318357159,6.2018275,1623.4,1623.3,0.38985583]
[1745318357603,0.04191621,1623.4,1623.3,0.38985583]
[1745318358302,0.02890575,1623.4,1623.3,0.38985583]
[1745318358807,0.02890575,1623.4,1623.3,7.91384659]
[1745318359124,0.02890575,1623.4,1623.3,27.59720923]
[1745318359281,0.02890575,1623.4,1623.3,25.50233959]
[1745318359684,0.02890575,1623.4,1623.3,25.84633867]
[1745318360391,0.02890575,1623.4,1623.3,20.25346467]
[1745318364083,0.02100861,1623.4,1623.3,20.25346467]
[1745318364926,12.21963447,1624.0,1623.6,0.7903]
[1745318365105,6.15813563,1623.9,1623.7,0.22153883]